fUST/lending_fUST_20250824
["ID","MTS","AMOUNT","RATE_DAILY","PERIOD"]
[381037629,1755967222442,-679.00086207,0.00023353,2]
[381037630,1755967227719,200.0,0.00024658,15]
[381037631,1755967231056,-334.2625867,0.00024377,2]
[381037632,1755967233250,-159.52599272,0.00024377,2]
[381037633,1755967233272,-57.32338961,0.00025067,2]
[381037635,1755967234744,-142.67661039,0.00025067,2]
[381037636,1755967234767,-130.02369988,0.0002508,2]
[381037637,1755967240466,-226.55078086,0.0002508,2]
[381037638,1755967242054,-376.96693533,0.0002508,2]
[381037639,1755967244188,-104.2994053,0.0002508,2]
[381037640,1755967244209,-114.65994619,0.00025272,2]
[381037641,1755967247047,334.2625867,0.00025,3]
[381037642,1755967247167,-158.425585,0.00025272,2]
[381037643,1755967249207,-26.91446881,0.00025272,2]
[381037644,1755967249229,-138.25239358,0.00025272,2]
[381037645,1755967254539,-161.74760642,0.00025272,2]
[381037646,1755967254562,-73.96686482,0.00025272,2]
[381037647,1755967255730,1811.2745532,0.0002428,2]
[381037648,1755967256626,-226.03313518,0.00025272,2]
[381037649,1755967256647,-22.72518098,0.00025272,2]
[381037650,1755967257474,8188.7354468,0.00024281,2]
[381037651,1755967257496,1811.2645532,0.00024281,2]
[381037652,1755967258737,-158.2640484,0.00025172,2]
[381037653,1755967258793,-19.32507872,0.00025172,2]
[381037654,1755967261248,-240.393004,0.00025272,2]
[381037655,1755967264046,-36.88181502,0.00025272,2]
[381037656,1755967264070,-115.11818498,0.00025272,2]
[381037657,1755967266160,726.12871197,0.000199,2]
[381037658,1755967266401,726.12871185,0.00023353,2]
[381037659,1755967266605,726.12871185,0.00021627,2]
[381037660,1755967295121,611.4503268,0.00024281,2]
[381037661,1755967296824,-1084.88181502,0.00025272,2]
[381037662,1755967296855,-300.0,0.00025272,2]
[381037663,1755967296887,-300.0,0.00025272,2]
[381037664,1755967296915,-500.0,0.00025273,2]
[381037665,1755967296943,-500.0,0.00025273,2]
[381037666,1755967296971,-500.0,0.00025273,2]
[381037667,1755967297000,-160.47331941,0.00025273,2]
[381037668,1755967297031,-500.0,0.00025273,2]
[381037669,1755967297057,-200.0,0.00025273,2]
[381037670,1755967297084,-500.0,0.00025273,2]
[381037671,1755967297111,-409.29973114,0.00025273,2]
[381037672,1755967297421,-90.70026886,0.00025273,2]
[381037673,1755967297450,-500.0,0.00025273,2]
[381037674,1755967297478,-500.0,0.00025273,2]
[381037675,1755967297507,-500.0,0.00025273,2]
[381037676,1755967297535,-500.0,0.00025273,2]
[381037677,1755967297564,-500.0,0.00025273,2]
[381037678,1755967297593,-500.0,0.00025273,2]
[381037679,1755967297623,-500.0,0.00025273,2]
[381037680,1755967297652,-500.0,0.00025273,2]
[381037681,1755967297680,-500.0,0.00025273,2]
[381037682,1755967297708,-318.30842494,0.00025273,2]
[381037683,1755967297886,-181.9926124,0.00025273,2]
[381037684,1755967297915,-500.39064914,0.00025273,2]
[381037685,1755967297943,-500.0,0.00025273,2]
[381037686,1755967297972,-2043.68178591,0.00025274,2]
[381037687,1755967304099,1669.88514877,0.00025183,2]
[381037688,1755967305485,-233.28993604,0.00025274,9]
[381037689,1755967308575,-91.62806396,0.00025274,9]
[381037690,1755967308599,-263.2265434,0.00025274,2]
[381037691,1755967311191,-188.1815586,0.00025274,2]
[381037692,1755967312509,2470.06779211,0.00024967,2]
[381037693,1755967313043,156.19886906,0.00025175,2]
[381037694,1755967315936,-205.8545434,0.00025274,2]
[381037695,1755967319002,-185.72848102,0.00025274,2]
[381037696,1755967320053,666.0,0.00024291,2]
[381037697,1755967322732,-234.32346573,0.00025274,2]
[381037698,1755967334213,2209.37157015,0.00024291,2]
[381037699,1755967349167,-167.71874772,0.00024291,2]
[381037700,1755967352964,-155.34809731,0.00024291,2]
[381037701,1755967354202,-300.0,0.00024291,2]
[381037702,1755967356171,-214.43724243,0.00024291,2]
[381037704,1755967361036,-192.65190269,0.00024291,2]
[381037705,1755967363487,-217.8193546,0.00024291,2]
[381037706,1755967365634,165.297679,0.00013699,2]
[381037707,1755967365835,165.297679,0.00020187,2]
[381037708,1755967366481,-186.15682727,0.00024291,2]
[381037709,1755967368993,-156.15012828,0.00024291,2]
[381037710,1755967371589,-172.62340555,0.00024291,2]
[381037711,1755967393972,-219.03323599,0.00024291,2]
[381037712,1755967394077,4066.97242812,0.00025,3]
[381037713,1755967397510,-231.88663594,0.00024291,2]
[381037714,1755967399565,-200.0,0.00024291,2]
[381037715,1755967401655,-176.43113628,0.00024291,2]
[381037716,1755967402965,-247.94204768,0.00024291,2]
[381037717,1755967404425,-179.11559908,0.00024291,2]
[381037718,1755967405873,-327.30394625,0.00024291,2]
[381037719,1755967409737,-206.51508165,0.00024291,2]
[381037720,1755967411532,-178.00481879,0.00024291,2]
[381037721,1755967414158,-180.13495507,0.00024291,2]
[381037722,1755967415704,-36.71864577,0.00024291,2]
[381037723,1755967415727,-228.93354809,0.00024333,2]
[381037724,1755967418048,-195.43037143,0.00024333,2]
[381037725,1755967432157,653.51584081,0.000199,2]
[381037726,1755967432815,653.51584066,0.00021627,2]
[381037727,1755967432869,653.51584066,0.00023353,2]
[381037728,1755967442670,-261.05391916,0.00024333,2]
[381037729,1755967445293,-314.58216132,0.00024333,2]
[381037730,1755967445316,-39.06665611,0.00024989,2]
[381037731,1755967447317,-260.93334389,0.00024989,2]
[381037732,1755967447456,-99.93336783,0.0002499,2]
[381037733,1755967449487,-320.58599678,0.0002499,2]
[381037734,1755967451976,-172.74858224,0.0002499,2]
[381037735,1755967455176,-173.61685511,0.0002499,2]
[381037736,1755967456771,-247.54462276,0.0002499,2]
[381037737,1755967459394,-180.18728878,0.0002499,2]
[381037738,1755967461903,-151.0,0.0002499,2]
[381037739,1755967464424,-237.65971792,0.00024253,2]
[381037740,1755967476478,280.55,0.0002498,10]
[381037741,1755967477466,5000.0,0.00025,3]
[381037742,1755967485413,4786.91089939,0.00025,3]
[381037743,1755967493835,4452.15375391,0.00024,3]
[381037744,1755967602118,588.16425659,0.00021627,2]
[381037745,1755967602604,588.16425659,0.00023353,2]
[381037746,1755967602864,588.16425671,0.000199,2]
[381037747,1755967710552,-165.06955657,0.00023744,2]
[381037749,1755967756378,-3818.689595,0.00023591,2]
[381037750,1755967756398,-4834.93044343,0.00023744,2]
[381037751,1755967756419,-172.62340555,0.00023884,2]
[381037752,1755967756438,-200.6129446,0.00023984,2]
[381037753,1755967756458,-300.0,0.00024252,2]
[381037754,1755967756478,-7655.03662678,0.00024253,2]
[381037755,1755967756497,-1000.0,0.000244,2]
[381037756,1755967756515,-1776.84874042,0.00024872,2]
[381037757,1755967756535,-6855.4588542,0.00024879,2]
[381037758,1755967756553,-24850.35761478,0.0002489,2]
[381037759,1755967756574,-253.49,0.00024963,10]
[381037760,1755967756593,-151.0,0.0002497,2]
[381037761,1755967756613,-191.0,0.0002497,2]
[381037762,1755967756632,-1200.0,0.00024972,2]
[381037763,1755967756650,-500.0,0.00024973,2]
[381037764,1755967756669,-500.0,0.00024973,2]
[381037765,1755967756687,-200.0,0.00024973,2]
[381037766,1755967756706,-516.62234661,0.00024973,2]
[381037767,1755967756726,-500.0,0.00024973,2]
[381037768,1755967756749,-500.0,0.00024973,2]
[381037769,1755967756770,-500.0,0.00024973,2]
[381037770,1755967756789,-372.2786102,0.00024973,2]
[381037771,1755967756809,-500.0,0.00024973,2]
[381037772,1755967756828,-185.94231455,0.00024973,2]
[381037773,1755967756848,-500.0,0.00024973,2]
[381037774,1755967756968,-500.0,0.00024973,2]
[381037775,1755967756989,-50000.0,0.00024973,2]
[381037776,1755967757009,-500.0,0.00024973,2]
[381037777,1755967757028,-500.0,0.00024973,2]
[381037778,1755967757048,-500.0,0.00024973,2]
[381037779,1755967757068,-6855.45885416,0.00024978,2]
[381037780,1755967757090,-1200.0,0.00024979,2]
[381037781,1755967757110,-808.45,0.00024979,3]
[381037782,1755967757130,-404.23,0.00024979,3]
[381037783,1755967757150,-202.11,0.00024979,3]
[381037784,1755967757170,-606.36,0.00024979,3]
[381037785,1755967757190,-2445.00940674,0.00024979,2]
[381037786,1755967757209,-289.2945633,0.00024979,2]
[381037787,1755967757229,-2445.00940674,0.0002498,2]
[381037788,1755967757249,-289.2945633,0.0002498,2]
[381037789,1755967757270,-220.0,0.00024981,3]
[381037790,1755967757291,-300.0,0.00024989,2]
[381037791,1755967757310,-300.0,0.00024989,2]
[381037792,1755967757331,-300.0,0.00024989,2]
[381037793,1755967757350,-300.0,0.00024989,2]
[381037794,1755967757372,-500.0,0.00024989,2]
[381037795,1755967757392,-500.0,0.00024989,2]
[381037796,1755967757412,-500.0,0.00024989,2]
[381037797,1755967757433,-500.0,0.00024989,2]
[381037798,1755967757453,-500.0,0.00024989,2]
[381037799,1755967757473,-500.0,0.00024989,2]
[381037800,1755967757495,-500.0,0.00024989,2]
[381037801,1755967757514,-500.0,0.00024989,2]
[381037802,1755967757534,-500.0,0.00024989,2]
[381037803,1755967757552,-266.74716245,0.00024989,2]
[381037804,1755967757571,-500.0,0.00024989,2]
[381037805,1755967757590,-500.0,0.00024989,2]
[381037806,1755967757609,-435.88528479,0.00024989,2]
[381037807,1755967757629,-500.0,0.00024989,2]
[381037808,1755967757647,-400.15683391,0.00024989,2]
[381037809,1755967757668,-500.0,0.00024989,2]
[381037810,1755967757687,-500.0,0.00024989,2]
[381037811,1755967757708,-500.0,0.00024989,2]
[381037812,1755967757728,-500.0,0.00024989,2]
[381037813,1755967757748,-500.0,0.00024989,2]
[381037814,1755967757769,-500.0,0.00024989,2]
[381037815,1755967757788,-500.0,0.00024989,2]
[381037816,1755967757808,-500.0,0.00024989,2]
[381037817,1755967757827,-500.0,0.00024989,2]
[381037818,1755967757848,-500.0,0.00024989,2]
[381037819,1755967757868,-612.58310279,0.00024989,2]
[381037820,1755967757889,-443.29437545,0.00024989,2]
[381037821,1755967757908,-295.97723646,0.00024989,2]
[381037822,1755967757927,-500.0,0.00024989,2]
[381037823,1755967757947,-500.0,0.00024989,2]
[381037824,1755967757967,-500.0,0.00024989,2]
[381037825,1755967757987,-500.0,0.00024989,2]
[381037826,1755967758006,-500.0,0.00024989,2]
[381037827,1755967758025,-500.0,0.00024989,2]
[381037828,1755967758047,-500.0,0.00024989,2]
[381037829,1755967758069,-500.0,0.00024989,2]
[381037830,1755967758088,-500.0,0.00024989,2]
[381037831,1755967758109,-500.0,0.00024989,2]
[381037832,1755967758128,-500.0,0.00024989,2]
[381037833,1755967758149,-500.0,0.00024989,2]
[381037834,1755967758169,-500.0,0.00024989,2]
[381037835,1755967758188,-500.0,0.00024989,2]
[381037836,1755967758209,-500.0,0.00024989,2]
[381037837,1755967758229,-500.0,0.00024989,2]
[381037838,1755967758249,-500.0,0.00024989,2]
[381037839,1755967758271,-500.0,0.00024989,2]
[381037840,1755967758292,-500.0,0.00024989,2]
[381037841,1755967758389,-442.90786462,0.00024989,2]
[381037842,1755967758424,-500.0,0.00024989,2]
[381037843,1755967758445,-500.0,0.00024989,2]
[381037844,1755967758466,-500.0,0.00024989,2]
[381037845,1755967758485,-500.0,0.00024989,2]
[381037846,1755967758505,-500.0,0.00024989,2]
[381037847,1755967758527,-500.0,0.00024989,2]
[381037848,1755967758549,-500.0,0.00024989,2]
[381037849,1755967758570,-500.0,0.00024989,2]
[381037850,1755967758589,-500.0,0.00024989,2]
[381037851,1755967758611,-500.0,0.00024989,2]
[381037852,1755967758631,-500.0,0.00024989,2]
[381037853,1755967758652,-500.0,0.00024989,2]
[381037854,1755967758673,-500.0,0.00024989,2]
[381037855,1755967758694,-500.0,0.00024989,2]
[381037856,1755967758715,-519.4844487,0.00024989,2]
[381037857,1755967758737,-500.0,0.00024989,2]
[381037858,1755967758759,-500.0,0.00024989,2]
[381037859,1755967758781,-500.0,0.00024989,2]
[381037860,1755967758802,-500.0,0.00024989,2]
[381037861,1755967758826,-500.0,0.00024989,2]
[381037862,1755967758848,-500.0,0.00024989,2]
[381037863,1755967758870,-500.0,0.00024989,2]
[381037864,1755967758890,-500.0,0.00024989,2]
[381037865,1755967758911,-500.0,0.00024989,2]
[381037866,1755967758934,-500.0,0.00024989,2]
[381037867,1755967758953,-500.0,0.00024989,2]
[381037868,1755967758975,-500.0,0.00024989,2]
[381037869,1755967758996,-500.0,0.00024989,2]
[381037870,1755967759018,-500.0,0.00024989,2]
[381037871,1755967759040,-500.0,0.00024989,2]
[381037872,1755967759063,-500.0,0.00024989,2]
[381037873,1755967759086,-500.0,0.00024989,2]
[381037874,1755967759108,-500.0,0.00024989,2]
[381037875,1755967759131,-500.0,0.00024989,2]
[381037876,1755967759153,-409.86524419,0.00024989,2]
[381037877,1755967759175,-500.0,0.00024989,2]
[381037878,1755967759196,-500.0,0.00024989,2]
[381037879,1755967759218,-500.0,0.00024989,2]
[381037880,1755967759239,-500.0,0.00024989,2]
[381037881,1755967759260,-500.0,0.00024989,2]
[381037882,1755967759295,-500.0,0.00024989,2]
[381037883,1755967759315,-500.0,0.00024989,2]
[381037884,1755967759338,-500.0,0.00024989,2]
[381037885,1755967759357,-500.0,0.00024989,2]
[381037886,1755967759378,-500.0,0.00024989,2]
[381037887,1755967759399,-500.0,0.00024989,2]
[381037888,1755967759419,-500.0,0.00024989,2]
[381037889,1755967759440,-500.0,0.00024989,2]
[381037890,1755967759460,-500.0,0.00024989,2]
[381037891,1755967759481,-500.0,0.00024989,2]
[381037892,1755967759505,-500.0,0.00024989,2]
[381037893,1755967759527,-500.0,0.00024989,2]
[381037894,1755967759548,-500.0,0.00024989,2]
[381037895,1755967759570,-500.0,0.00024989,2]
[381037896,1755967759589,-500.0,0.00024989,2]
[381037897,1755967759610,-500.0,0.00024989,2]
[381037898,1755967759631,-500.0,0.00024989,2]
[381037899,1755967759651,-500.0,0.00024989,2]
[381037900,1755967759671,-500.0,0.00024989,2]
[381037901,1755967759690,-500.0,0.00024989,2]
[381037902,1755967759712,-500.0,0.00024989,2]
[381037903,1755967759733,-500.0,0.00024989,2]
[381037904,1755967759754,-500.0,0.00024989,2]
[381037905,1755967759773,-500.0,0.00024989,2]
[381037906,1755967759879,-500.0,0.00024989,2]
[381037907,1755967759899,-500.0,0.00024989,2]
[381037908,1755967759919,-500.0,0.00024989,2]
[381037909,1755967759939,-500.0,0.00024989,2]
[381037910,1755967759960,-500.0,0.00024989,2]
[381037911,1755967759988,-500.0,0.00024989,2]
[381037912,1755967760012,-500.0,0.00024989,2]
[381037913,1755967760033,-500.0,0.00024989,2]
[381037914,1755967760054,-500.0,0.00024989,2]
[381037915,1755967760075,-500.0,0.00024989,2]
[381037916,1755967760094,-500.0,0.00024989,2]
[381037917,1755967760115,-500.0,0.00024989,2]
[381037918,1755967760134,-500.0,0.00024989,2]
[381037919,1755967760155,-500.0,0.00024989,2]
[381037920,1755967760175,-500.0,0.00024989,2]
[381037921,1755967760198,-500.0,0.00024989,2]
[381037922,1755967760218,-500.0,0.00024989,2]
[381037923,1755967760239,-500.0,0.00024989,2]
[381037924,1755967760259,-500.0,0.00024989,2]
[381037925,1755967760280,-500.0,0.00024989,2]
[381037926,1755967760299,-500.0,0.00024989,2]
[381037927,1755967760318,-500.0,0.00024989,2]
[381037928,1755967760338,-500.0,0.00024989,2]
[381037929,1755967760357,-500.0,0.00024989,2]
[381037930,1755967760378,-500.0,0.00024989,2]
[381037931,1755967760397,-193.63541957,0.00024989,2]
[381037932,1755967760420,-500.0,0.00024989,2]
[381037933,1755967760440,-500.0,0.00024989,2]
[381037934,1755967760460,-500.0,0.00024989,2]
[381037935,1755967760482,-500.0,0.00024989,2]
[381037936,1755967760502,-500.0,0.00024989,2]
[381037937,1755967760522,-500.0,0.00024989,2]
[381037938,1755967760541,-500.0,0.00024989,2]
[381037939,1755967760562,-500.0,0.00024989,2]
[381037940,1755967760581,-500.0,0.00024989,2]
[381037941,1755967760601,-500.0,0.00024989,2]
[381037942,1755967760622,-500.0,0.00024989,2]
[381037943,1755967760641,-500.0,0.00024989,2]
[381037944,1755967760662,-500.0,0.00024989,2]
[381037945,1755967760682,-500.0,0.00024989,2]
[381037946,1755967760704,-500.0,0.00024989,2]
[381037947,1755967760728,-500.0,0.00024989,2]
[381037948,1755967760749,-500.0,0.00024989,2]
[381037949,1755967760770,-500.0,0.00024989,2]
[381037950,1755967760793,-500.0,0.00024989,2]
[381037951,1755967760816,-500.0,0.00024989,2]
[381037952,1755967760837,-500.0,0.00024989,2]
[381037953,1755967760862,-450.0,0.00024989,2]
[381037954,1755967760883,-500.0,0.00024989,2]
[381037955,1755967760906,-552.17442259,0.00024989,2]
[381037956,1755967760928,-500.0,0.00024989,2]
[381037957,1755967760950,-500.0,0.00024989,2]
[381037958,1755967760971,-500.0,0.00024989,2]
[381037959,1755967760991,-500.0,0.00024989,2]
[381037960,1755967761011,-98654.3832865,0.0002499,2]
[381037961,1755967761031,-151.0,0.00025,13]
[381037962,1755967761051,-151.0,0.00025,8]
[381037963,1755967761071,-2000.0,0.00025,4]
[381037964,1755967761090,-193.0,0.00025,7]
[381037965,1755967761112,-6855.45885416,0.00025076,2]
[381037966,1755967761136,-588.16425659,0.0002508,2]
[381037967,1755967761156,-151.0,0.000251,15]
[381037968,1755967761260,-151.0,0.000251,19]
[381037969,1755967761282,-151.0,0.000251,18]
[381037970,1755967761304,-6855.45885416,0.00025175,2]
[381037971,1755967761327,-151.0,0.000252,10]
[381037972,1755967761361,-151.0,0.000252,14]
[381037973,1755967761392,-1222.50470337,0.00025252,2]
[381037974,1755967761411,-1222.50470337,0.00025254,2]
[381037975,1755967761432,-500.0,0.00025263,2]
[381037976,1755967761451,-500.0,0.00025273,2]
[381037977,1755967761471,-508.40628027,0.00025273,2]
[381037978,1755967761492,-360.53898623,0.00025273,2]
[381037979,1755967761514,-500.0,0.00025273,2]
[381037980,1755967761534,-500.0,0.00025273,2]
[381037981,1755967761554,-500.0,0.00025273,2]
[381037982,1755967761575,-500.0,0.00025273,2]
[381037983,1755967761595,-501.2471756,0.00025273,2]
[381037984,1755967761616,-500.0,0.00025273,2]
[381037985,1755967761636,-500.0,0.00025273,2]
[381037986,1755967761656,-500.0,0.00025273,2]
[381037987,1755967761675,-500.0,0.00025273,2]
[381037988,1755967761694,-500.0,0.00025273,2]
[381037989,1755967761714,-500.0,0.00025273,2]
[381037990,1755967761736,-517.46389673,0.00025273,2]
[381037991,1755967761756,-500.0,0.00025273,2]
[381037992,1755967761777,-500.0,0.00025273,2]
[381037993,1755967761797,-500.0,0.00025273,2]
[381037994,1755967761819,-151.94576417,0.00025273,2]
[381037995,1755967761840,-500.0,0.00025273,2]
[381037996,1755967761860,-500.0,0.00025273,2]
[381037997,1755967761879,-500.0,0.00025273,2]
[381037998,1755967761899,-316.02691246,0.00025273,2]
[381037999,1755967761918,-500.0,0.00025273,2]
[381038000,1755967761938,-350.34236272,0.00025273,2]
[381038001,1755967761958,-500.0,0.00025273,2]
[381038002,1755967761978,-500.0,0.00025273,2]
[381038003,1755967761997,-500.0,0.00025273,2]
[381038004,1755967762018,-500.0,0.00025273,2]
[381038005,1755967762038,-500.0,0.00025273,2]
[381038006,1755967762058,-500.0,0.00025273,2]
[381038007,1755967762078,-500.88476791,0.00025273,2]
[381038008,1755967762098,-500.0,0.00025273,2]
[381038009,1755967762119,-500.0,0.00025273,2]
[381038010,1755967762139,-500.0,0.00025273,2]
[381038011,1755967762159,-500.0,0.00025273,2]
[381038012,1755967762179,-501.12866524,0.00025273,2]
[381038013,1755967762200,-500.0,0.00025273,2]
[381038014,1755967762220,-500.0,0.00025273,2]
[381038015,1755967762241,-500.0,0.00025273,2]
[381038016,1755967762261,-500.0,0.00025273,2]
[381038017,1755967762282,-207.35869563,0.00025273,2]
[381038018,1755967762303,-500.0,0.00025273,2]
[381038019,1755967762324,-500.28107365,0.00025273,2]
[381038020,1755967762344,-500.0,0.00025273,2]
[381038021,1755967762365,-500.50736055,0.00025273,2]
[381038022,1755967762385,-500.0,0.00025273,2]
[381038023,1755967762405,-500.0,0.00025273,2]
[381038024,1755967762425,-231.94355464,0.00025273,2]
[381038025,1755967762444,-500.0,0.00025273,2]
[381038026,1755967762479,-500.0,0.00025273,2]
[381038027,1755967762499,-196.50188124,0.00025273,2]
[381038028,1755967762600,-151.0,0.00025274,2]
[381038029,1755967762621,-151.0,0.00025274,2]
[381038030,1755967762642,-151.0,0.00025274,2]
[381038031,1755967762661,-151.0,0.00025274,2]
[381038032,1755967762681,-173.21609448,0.00025286,2]
[381038033,1755967762702,-151.0,0.000253,10]
[381038034,1755967762723,-151.0,0.000253,17]
[381038035,1755967762748,-151.0,0.000253,11]
[381038036,1755967762769,-6112.52351685,0.00025352,2]
[381038037,1755967762796,-723.23640825,0.00025352,2]
[381038038,1755967762826,-6112.52351685,0.00025354,2]
[381038039,1755967762847,-723.23640825,0.00025354,2]
[381038040,1755967762868,-500.0,0.0002536,2]
[381038041,1755967762889,-233.36904532,0.0002536,2]
[381038042,1755967762910,-151.0,0.00025362,7]
[381038043,1755967762931,-151.894825,0.00025362,7]
[381038044,1755967762953,-842.175173,0.00025362,7]
[381038045,1755967762975,-842.175173,0.00025362,7]
[381038046,1755967762996,-842.175173,0.00025362,7]
[381038047,1755967763016,-842.175173,0.00025362,7]
[381038048,1755967763037,-151.0,0.00025362,7]
[381038049,1755967763057,-151.0,0.00025362,7]
[381038050,1755967763077,-151.0,0.00025362,7]
[381038051,1755967763097,-338.5921,0.00025362,7]
[381038052,1755967763117,-338.5921,0.00025362,7]
[381038053,1755967763139,-338.5921,0.00025362,7]
[381038054,1755967763159,-338.5921,0.00025362,7]
[381038055,1755967763180,-151.0,0.00025362,7]
[381038056,1755967763203,-151.0,0.00025362,7]
[381038057,1755967763240,-151.0,0.00025362,7]
[381038058,1755967763278,-165.74627,0.00025362,7]
[381038059,1755967763313,-151.0,0.00025362,7]
[381038060,1755967763346,-151.0,0.00025362,7]
[381038061,1755967763384,-151.0,0.00025362,7]
[381038062,1755967763417,-151.0,0.00025362,7]
[381038063,1755967763452,-151.0,0.00025362,7]
[381038064,1755967763481,-151.0,0.00025362,7]
[381038065,1755967763512,-151.0,0.00025362,7]
[381038066,1755967763545,-151.0,0.00025362,7]
[381038067,1755967763578,-1428.83,0.00025362,2]
[381038068,1755967763608,-151.0,0.00025362,7]
[381038069,1755967763638,-151.0,0.00025362,7]
[381038070,1755967763669,-151.0,0.00025362,7]
[381038071,1755967763699,-182.76917,0.00025362,7]
[381038072,1755967763732,-182.76917,0.00025362,7]
[381038073,1755967763764,-151.0,0.00025362,7]
[381038074,1755967763796,-182.76917,0.00025362,7]
[381038075,1755967763829,-182.76917,0.00025362,7]
[381038076,1755967763860,-151.0,0.00025362,7]
[381038077,1755967763891,-151.0,0.00025362,7]
[381038078,1755967763921,-151.0,0.00025362,7]
[381038079,1755967763951,-232.15668,0.00025362,7]
[381038080,1755967763982,-261.186752,0.00025362,7]
[381038081,1755967764014,-232.15668,0.00025362,7]
[381038082,1755967764044,-261.186752,0.00025362,7]
[381038083,1755967764074,-232.15668,0.00025362,7]
[381038084,1755967764105,-261.186752,0.00025362,7]
[381038085,1755967764136,-232.15668,0.00025362,7]
[381038086,1755967764297,-261.186752,0.00025362,7]
[381038087,1755967764319,-151.0,0.00025362,7]
[381038088,1755967764338,-151.0,0.00025362,7]
[381038089,1755967764360,-235.26079,0.00025362,7]
[381038090,1755967764380,-235.26079,0.00025362,7]
[381038091,1755967764401,-151.128324,0.00025362,7]
[381038092,1755967764422,-235.26079,0.00025362,7]
[381038093,1755967764443,-235.26079,0.00025362,7]
[381038094,1755967764465,-151.0,0.00025362,7]
[381038095,1755967764485,-151.0,0.00025362,7]
[381038096,1755967764507,-151.0,0.00025362,7]
[381038097,1755967764528,-208.257931,0.00025362,7]
[381038098,1755967764548,-151.0,0.00025362,7]
[381038099,1755967764568,-208.257931,0.00025362,7]
[381038100,1755967764589,-208.257931,0.00025362,7]
[381038101,1755967764608,-208.257931,0.00025362,7]
[381038102,1755967764629,-246.832727,0.00025362,7]
[381038103,1755967764648,-151.0,0.00025362,7]
[381038104,1755967764669,-246.832727,0.00025362,7]
[381038105,1755967764690,-246.832727,0.00025362,7]
[381038106,1755967764710,-151.0,0.00025362,7]
[381038107,1755967764735,-246.832727,0.00025362,7]
[381038108,1755967764756,-151.0,0.00025362,7]
[381038109,1755967764778,-1222.50470337,0.00025363,2]
[381038110,1755967764798,-151.0,0.00025364,7]
[381038111,1755967764819,-842.175173,0.00025364,7]
[381038112,1755967764841,-842.175173,0.00025364,7]
[381038113,1755967764862,-842.175173,0.00025364,7]
[381038114,1755967764884,-842.175173,0.00025364,7]
[381038115,1755967764907,-151.0,0.00025364,7]
[381038116,1755967764930,-151.0,0.00025364,7]
[381038117,1755967764951,-338.5921,0.00025364,7]
[381038118,1755967764974,-338.5921,0.00025364,7]
[381038119,1755967764995,-338.5921,0.00025364,7]
[381038120,1755967765017,-338.5921,0.00025364,7]
[381038121,1755967765040,-151.0,0.00025364,7]
[381038122,1755967765061,-151.0,0.00025364,7]
[381038123,1755967765082,-151.0,0.00025364,7]
[381038124,1755967765104,-151.0,0.00025364,7]
[381038125,1755967765126,-151.0,0.00025364,7]
[381038126,1755967765146,-151.0,0.00025364,7]
[381038127,1755967765168,-151.0,0.00025364,7]
[381038128,1755967765190,-151.0,0.00025364,7]
[381038129,1755967765213,-151.0,0.00025364,7]
[381038130,1755967765235,-151.0,0.00025364,7]
[381038131,1755967765256,-217.0334113,0.00025364,7]